bitfinex-derivatives/quotes_SOLF0:USTF0_20240926
["timestamp","ask_amount","ask_price","bid_price","bid_amount"]
[1727394278981,13.1176,155.36,155.32,3.2182]
[1727394279183,9.9,155.36,155.32,3.2182]
[1727394280778,3.2178,155.35,155.32,3.2182]
[1727394281881,13.1178,155.35,155.32,3.2182]
[1727394282379,3.2179,155.34,155.31,3.2185]
[1727394282581,9.9,155.33,155.3,1.2743]
[1727394283287,9.9,155.33,155.3,4.4929]
[1727394284085,9.9,155.33,155.3,1.2743]
[1727394285086,13.1181,155.33,155.3,1.2743]
[1727394286190,9.9,155.33,155.3,4.4929]
[1727394290289,13.118,155.34,155.3,4.4929]
[1727394295593,3.2178,155.35,155.32,3.2183]
[1727394296500,13.1175,155.36,155.3,11.1743]
[1727394297393,13.1175,155.36,155.31,9.9]
[1727394298500,13.1169,155.39,155.34,9.9]
[1727394299098,13.1169,155.39,155.35,3.2176]
[1727394299692,1.3317,155.44,155.35,9.9]
[1727394299898,9.9,155.4,155.36,9.9]
[1727394300102,9.9,155.39,155.35,9.9]
[1727394300309,9.9,155.39,155.31,2.6182]
[1727394300310,9.9,155.38,155.34,9.9]
[1727394301096,9.9,155.38,155.35,3.2175]
[1727394301501,3.2177,155.35,155.32,3.2182]
[1727394301701,9.9,155.37,155.32,9.9]
[1727394302097,13.1176,155.36,155.32,3.2182]
[1727394302302,13.1176,155.36,155.31,12.5182]
[1727394302303,9.9,155.36,155.31,12.5182]
[1727394302502,9.9,155.37,155.32,9.9]
[1727394303507,13.1173,155.37,155.33,3.218]
[1727394303710,3.2173,155.37,155.33,3.218]
[1727394304009,13.1171,155.38,155.34,3.2179]
[1727394304303,13.1171,155.38,155.34,13.1179]
[1727394304608,13.1171,155.38,155.34,9.9]
[1727394305305,13.1171,155.38,155.34,13.1177]
[1727394308902,13.1169,155.39,155.34,9.9]
[1727394309502,13.1169,155.39,155.36,3.2175]
[1727394310021,13.1169,155.39,155.34,9.9]
[1727394311007,13.1169,155.39,155.35,3.2176]
[1727394312407,13.1173,155.37,155.33,9.9]
[1727394312913,13.1173,155.37,155.34,3.2179]
[1727394313217,3.2172,155.38,155.34,9.9]
[1727394313713,3.2172,155.38,155.35,3.2176]
[1727394315716,3.2173,155.37,155.34,13.1178]
[1727394324720,3.2171,155.38,155.35,3.2176]
[1727394327617,3.2174,155.37,155.34,13.1178]
[1727394329813,13.1172,155.38,155.35,3.2176]
[1727394330418,3.2173,155.37,155.35,3.2176]
[1727394332120,19.32,155.52,155.36,9.9]
[1727394332320,19.32,155.52,155.39,9.9]
[1727394332321,9.9,155.45,155.39,9.9]
[1727394332816,10.46926336,155.49,155.39,13.1168]
[1727394332817,3.2161,155.43,155.39,13.1168]
[1727394333319,3.21658559,155.49,155.41,9.9]
[1727394333528,9.9,155.46,155.41,9.9]
[1727394334125,9.9,155.46,155.42,9.9]
[1727394334720,9.9,155.45,155.4,9.9]
[1727394335927,3.2159,155.44,155.4,13.1165]
[1727394336425,13.1157,155.45,155.41,3.2164]
[1727394337020,3.2157,155.45,155.42,13.1162]
[1727394337525,13.1155,155.46,155.42,13.1162]
[1727394337823,9.9,155.46,155.42,13.1162]
[1727394338032,25.7446,155.62,155.48,3.2149]
[1727394338227,9.9,155.49,155.36,5.96943889]
[1727394338531,9.9,155.47,155.43,9.9]
[1727394338726,9.9,155.48,155.43,9.9]
[1727394338933,9.9,155.48,155.44,9.9]
[1727394339130,13.1151,155.48,155.44,13.1156]
[1727394339431,53.99294324,155.54,155.44,9.9]
[1727394339626,9.9,155.48,155.44,13.1158]
[1727394339823,9.9,155.47,155.43,9.9]
[1727394340325,9.9,155.47,155.43,3.2159]
[1727394340556,13.115,155.48,155.44,9.9]
[1727394340832,13.115,155.48,155.44,13.1158]
[1727394341224,13.115,155.48,155.44,3.2158]
[1727394341422,13.115,155.48,155.44,13.1158]
[1727394343935,9.9,155.48,155.44,13.1158]
[1727394344630,9.9,155.49,155.37,77.2]
[1727394344935,9.9,155.45,155.42,9.9]
[1727394345831,9.9,155.44,155.41,9.9]
[1727394346235,3.2159,155.44,155.41,9.9]
[1727394348134,13.1159,155.44,155.41,9.9]
[1727394348536,9.9,155.43,155.37,77.2]
[1727394348739,9.9,155.41,155.37,77.2]
[1727394348933,9.9,155.4,155.36,2.735]
[1727394349131,9.9,155.37,155.28,77.2]
[1727394349329,9.9,155.37,155.33,9.9]
[1727394349534,9.9,155.37,155.29,2.7312]
[1727394349740,3.2177,155.35,155.32,9.9]
[1727394349940,9.9,155.37,155.32,9.9]
[1727394350239,3.2176,155.36,155.32,13.1183]
[1727394350840,9.9,155.33,155.29,2.7312]
[1727394351039,9.9,155.32,155.29,2.7312]
[1727394351333,4.56535663,155.43,155.3,9.9]
[1727394351531,1.3816,155.43,155.33,9.9]
[1727394351729,9.9,155.37,155.33,9.9]
[1727394351937,3.2176,155.36,155.33,9.9]
[1727394352138,9.9,155.38,155.34,9.9]
[1727394352538,3.2173,155.37,155.34,9.9]
[1727394352939,9.9,155.38,155.34,9.9]
[1727394353139,3.2174,155.37,155.34,9.9]
[1727394355041,9.9,155.38,155.34,9.9]
[1727394356644,3.2174,155.37,155.34,9.9]
[1727394359944,3.2165,155.41,155.35,9.9]
[1727394360153,9.9,155.41,155.36,9.9]
[1727394360347,9.9,155.4,155.36,9.9]
[1727394360538,3.2169,155.39,155.36,9.9]
[1727394361148,9.9,155.38,155.34,1.3539]
[1727394361538,9.9,155.35,155.29,1.371]
[1727394361744,70.17662783,155.43,155.27,9.9]
[1727394361745,3.2187,155.3,155.27,9.9]
[1727394361944,3.2187,155.3,155.25,2.5505]
[1727394361945,3.2187,155.3,155.26,9.9]
[1727394362440,13.1186,155.31,155.26,9.9]
[1727394362641,9.9,155.31,155.25,3.9444]
[1727394362845,9.9,155.31,155.26,13.1194]
[1727394363152,3.2189,155.3,155.26,9.9]
[1727394364951,13.1185,155.31,155.27,13.1193]
[1727394365148,3.2185,155.31,155.27,13.1193]
[1727394366352,13.1185,155.31,155.27,13.1193]
[1727394369452,2.233,155.39,155.29,9.9]
[1727394369650,9.9,155.34,155.29,9.9]
[1727394370151,9.9,155.32,155.29,9.9]
[1727394370350,13.1184,155.32,155.29,9.9]
[1727394371053,9.9,155.36,155.31,9.9]
[1727394371348,9.9,155.33,155.28,9.9]
[1727394372758,3.2183,155.32,155.29,3.2189]
[1727394372959,9.9,155.34,155.29,13.1189]
[1727394373558,9.9,155.34,155.3,3.2186]
[1727394374555,13.118,155.34,155.3,3.2186]
[1727394374952,13.118,155.34,155.31,3.2185]
[1727394375158,13.118,155.34,155.29,9.9]
[1727394375462,3.218,155.34,155.31,9.9]
[1727394376958,3.218,155.34,155.31,13.1185]
[1727394377356,3.218,155.34,155.31,9.9]
[1727394379055,3.218,155.34,155.31,13.1185]
[1727394379858,3.2181,155.33,155.31,9.9]
[1727394380462,3.218,155.34,155.31,9.9]
[1727394381354,9.9,155.35,155.31,9.9]
[1727394381559,9.9,155.32,155.25,3.9444]
[1727394381761,2.233,155.39,155.25,13.8444]
[1727394381762,9.9,155.29,155.25,13.8444]
[1727394382064,2.233,155.39,155.25,3.9444]
[1727394382065,9.9,155.28,155.25,3.9444]
[1727394382652,9.9,155.26,155.21,77.26]
[1727394382858,9.9,155.26,155.21,87.16]
[1727394383268,13.1197,155.26,155.22,9.9]
[1727394383667,9.9,155.24,155.21,80.4805]
[1727394386474,3.2198,155.25,155.21,90.3805]
[1727394387170,9.9,155.27,155.22,9.9]
[1727394387675,3.2196,155.26,155.22,13.1203]
[1727394387877,13.1196,155.26,155.22,13.1203]
[1727394388470,13.1198,155.25,155.22,3.2203]
[1727394388869,13.1198,155.25,155.21,13.1205]
[1727394389977,25.7328,155.42,155.24,9.9]
[1727394390274,9.9,155.32,155.27,9.9]
[1727394390480,9.9,155.31,155.26,9.9]
[1727394390679,9.9,155.31,155.27,3.2193]
[1727394391201,9.9,155.31,155.26,9.9]
[1727394391375,3.2189,155.3,155.26,13.1195]
[1727394392378,3.2189,155.3,155.26,3.2195]
[1727394392977,3.2189,155.29,155.26,3.2195]
[1727394394075,3.2189,155.29,155.25,3.2197]
[1727394394978,3.2191,155.28,155.24,3.2199]
[1727394397781,3.2191,155.28,155.25,3.2197]
[1727394400787,3.2194,155.27,155.23,1.3854]
[1727394401087,15.45,155.31,155.23,1.3854]
[1727394401487,3.2193,155.28,155.24,3.2199]
[1727394402593,3.2194,155.27,155.24,3.2199]
[1727394403181,3.2192,155.28,155.24,3.2199]
[1727394405488,3.2194,155.27,155.24,3.2199]
[1727394407084,15.45,155.29,155.23,1.3854]
[1727394407297,15.45,155.27,155.2,1.3234]
[1727394408083,3.2199,155.25,155.21,3.2204]
[1727394408284,3.2199,155.25,155.2,1.3234]
[1727394409499,15.45,155.29,155.2,16.7734]
[1727394409788,2.2366,155.32,155.22,15.45]
[1727394409789,15.45,155.31,155.22,15.45]
[1727394410293,15.45,155.31,155.25,3.2196]
[1727394410692,3.2193,155.28,155.25,3.2196]
[1727394410991,3.2193,155.28,155.24,3.2199]
[1727394411583,3.2193,155.28,155.25,3.2198]
[1727394414295,3.2193,155.28,155.25,13.1098]
[1727394414600,0.9661,155.37,155.27,9.89]
[1727394414896,3.2189,155.3,155.26,14.4017]
[1727394417994,9.89,155.29,155.26,1.2922]
[1727394418302,9.89,155.29,155.25,13.1097]
[1727394418799,3.2192,155.28,155.25,13.1097]
[1727394419496,13.109,155.29,155.25,13.1097]
[1727394420201,9.89,155.32,155.27,9.89]
[1727394421399,9.89,155.33,155.28,9.89]
[1727394421597,9.89,155.34,155.3,9.89]
[1727394421801,9.89,155.33,155.29,9.89]
[1727394422001,9.89,155.33,155.28,3.219]
[1727394422201,9.89,155.32,155.28,3.219]
[1727394422699,3.2187,155.31,155.28,3.219]
[1727394422893,3.2187,155.31,155.27,13.1093]
[1727394423296,9.89,155.33,155.28,9.89]
[1727394423499,4.55039978,155.36,155.22,2.57]
[1727394423500,9.89,155.36,155.31,9.89]
[1727394424600,3.2177,155.35,155.31,13.1084]
[1727394425699,3.2177,155.35,155.32,3.2183]
[1727394425899,9.89,155.39,155.34,9.89]
[1727394426117,9.89,155.4,155.35,9.89]
[1727394426497,13.1067,155.4,155.36,3.2173]
[1727394426703,13.1067,155.4,155.36,13.1073]
[1727394426904,3.2167,155.4,155.36,13.1073]
[1727394427609,9.89,155.41,155.37,9.89]
[1727394428602,13.1065,155.41,155.38,3.2169]
[1727394429006,9.89,155.41,155.36,9.89]
[1727394429406,3.2167,155.4,155.36,13.1073]
[1727394431802,3.2167,155.4,155.37,3.2173]
[1727394433107,13.1065,155.41,155.37,3.2173]
[1727394433307,13.1065,155.41,155.37,13.1073]
[1727394433308,9.89,155.41,155.37,13.1073]
[1727394434212,9.89,155.41,155.37,9.89]
[1727394435810,3.2167,155.4,155.37,13.1072]
[1727394437118,13.1064,155.42,155.39,9.89]
[1727394437718,3.2163,155.42,155.39,13.1068]
[1727394438118,3.2164,155.41,155.39,9.89]
[1727394438318,3.2164,155.41,155.38,3.217]
[1727394438520,60.76662783,155.43,155.38,13.107]
[1727394439314,60.76662783,155.43,155.39,3.2168]
[1727394440918,3.2163,155.42,155.39,3.2168]
[1727394441118,3.2163,155.42,155.38,13.107]
[1727394442521,3.2163,155.42,155.39,3.2168]
[1727394442724,54.09272783,155.43,155.4,9.89]
[1727394443518,54.09272783,155.43,155.4,13.1066]
[1727394443911,3.2159,155.44,155.41,9.89]
[1727394444214,3.2159,155.44,155.41,13.1063]
[1727394444416,3.2159,155.44,155.42,9.89]
[1727394449712,3.2157,155.45,155.42,13.04589006]
[1727394449919,9.89,155.47,155.42,9.82969006]
[1727394450114,9.89,155.47,155.41,9.89]
[1727394450923,9.89,155.47,155.41,13.1064]
[1727394450924,3.2159,155.44,155.41,13.1064]
[1727394452824,3.2159,155.44,155.42,9.89]
[1727394455021,3.2157,155.45,155.42,13.1062]
[1727394457525,3.2157,155.45,155.35,3.9982]
[1727394457526,9.89,155.45,155.35,3.9982]
[1727394457731,9.89,155.45,155.4,9.89]
[1727394458124,3.2158,155.44,155.41,13.1063]
[1727394460431,3.2158,155.44,155.41,3.2163]
[1727394460628,3.2158,155.44,155.42,9.89]
[1727394462730,3.2157,155.45,155.42,9.89]
[1727394463148,3.2157,155.45,155.42,13.1061]
[1727394465438,3.2159,155.44,155.35,3.9982]
[1727394465738,9.89,155.4,155.35,13.8882]
[1727394466041,3.2171,155.38,155.35,17.1057]
[1727394466744,3.2169,155.39,155.35,17.1057]
[1727394466941,9.89,155.4,155.35,3.9982]
[1727394467239,9.89,155.37,155.33,170.62206919]
[1727394467644,13.1074,155.37,155.33,170.62206919]
[1727394467844,9.89,155.38,155.34,9.89]
[1727394468041,9.89,155.4,155.36,9.89]
[1727394469040,13.1068,155.4,155.36,13.1075]
[1727394469242,3.2168,155.4,155.36,9.89]
[1727394469438,50.87085297,155.44,155.38,9.89]
[1727394469643,3.2164,155.42,155.38,13.107]
[1727394469946,9.89,155.43,155.38,13.107]
[1727394470647,3.2165,155.41,155.38,9.89]
[1727394473148,3.2165,155.41,155.38,13.1071]
[1727394473648,3.2165,155.41,155.38,9.89]
[1727394473850,3.2162,155.42,155.38,13.107]
[1727394474048,3.2162,155.42,155.39,9.89]
[1727394474252,60.76085297,155.44,155.39,9.89]
[1727394474549,3.2161,155.43,155.4,9.89]
[1727394475743,3.2161,155.43,155.4,13.1066]
[1727394483650,3.2159,155.44,155.4,13.1066]
[1727394483955,3.2159,155.44,155.41,3.2164]
[1727394484252,3.2159,155.44,155.42,9.89]
[1727394484452,3.2157,155.45,155.42,13.1062]
[1727394485253,3.2158,155.44,155.42,9.89]
[1727394485452,3.2158,155.44,155.41,3.2164]
[1727394485752,9.89,155.45,155.4,9.89]
[1727394485949,3.2161,155.43,155.4,13.1065]
[1727394486354,9.89,155.45,155.35,3.28825685]
[1727394486581,9.89,155.42,155.38,9.89]
[1727394486859,9.89,155.45,155.4,9.89]
[1727394487058,9.89,155.45,155.41,3.2164]
[1727394487259,9.89,155.45,155.4,9.89]
[1727394488757,3.216,155.43,155.4,13.1065]
[1727394488958,9.89,155.45,155.4,9.89]
[1727394489156,9.89,155.46,155.4,9.89]
[1727394489561,3.2159,155.44,155.41,3.2163]
[1727394489763,9.89,155.47,155.42,9.89]
[1727394490867,3.2156,155.45,155.42,13.1062]
[1727394492262,3.2159,155.44,155.42,9.89]
[1727394492561,9.89,155.46,155.41,9.89]
[1727394493887,9.89,155.44,155.34,90.632196]
[1727394494170,9.89,155.43,155.34,90.632196]
[1727394494360,9.89,155.42,155.34,90.632196]
[1727394494562,9.89,155.42,155.37,9.89]
[1727394495467,9.89,155.4,155.35,9.89]
[1727394495866,9.89,155.39,155.35,9.89]
[1727394496862,9.89,155.39,155.34,94.76769449]
[1727394497062,2.3322,155.44,155.34,94.76769449]
[1727394497063,9.89,155.37,155.34,94.76769449]
[1727394498265,9.89,155.36,155.28,2.6961]
[1727394498475,9.89,155.35,155.3,9.89]
[1727394498658,9.89,155.33,155.29,9.89]
[1727394498861,13.1082,155.33,155.29,13.1089]
[1727394502268,13.1082,155.33,155.28,3.9847]
[1727394502269,21.6322,155.44,155.32,9.89]
[1727394502769,21.6322,155.44,155.32,13.1083]
[1727394503068,9.89,155.37,155.32,13.1083]
[1727394503268,9.89,155.37,155.33,3.218]
[1727394503571,9.89,155.37,155.33,9.89]
[1727394503967,9.89,155.37,155.34,3.2177]
[1727394504363,3.2173,155.38,155.34,3.2177]
[1727394504562,9.89,155.38,155.28,3.9847]
[1727394504765,9.89,155.38,155.33,9.89]
[1727394504963,3.2175,155.36,155.33,13.1081]
[1727394507174,2.3322,155.44,155.34,9.89]
[1727394507376,9.89,155.39,155.34,9.89]
[1727394507574,9.89,155.38,155.34,9.89]
[1727394507875,3.2175,155.36,155.32,9.89]
[1727394508068,2.3322,155.44,155.34,9.89]
[1727394508274,3.2173,155.37,155.34,9.89]
[1727394508979,13.1073,155.37,155.33,13.108]
[1727394509976,3.2175,155.36,155.33,9.89]
[1727394510173,9.89,155.36,155.32,13.1082]
[1727394510668,3.218,155.34,155.3,9.89]
[1727394511679,3.218,155.34,155.3,13.1086]
[1727394513585,3.2184,155.32,155.29,9.89]
[1727394513882,3.2184,155.32,155.28,3.9847]
[1727394513883,9.89,155.33,155.28,13.8747]
[1727394514111,13.1084,155.32,155.28,12.5405]
[1727394514284,3.2184,155.32,155.29,9.89]
[1727394514778,3.2186,155.31,155.29,9.89]
[1727394515277,3.2186,155.31,155.28,12.5405]
[1727394515882,3.2186,155.31,155.28,15.7596]
[1727394516287,9.89,155.31,155.28,11.1786]
[1727394517899,3.2188,155.3,155.28,11.1786]
[1727394518288,3.2184,155.32,155.29,13.1089]
[1727394519487,9.89,155.33,155.31,3.2185]
[1727394519688,9.89,155.33,155.29,9.89]
[1727394520184,9.89,155.36,155.31,9.89]
[1727394520685,3.2182,155.33,155.31,9.89]
[1727394520887,3.2182,155.33,155.3,13.1086]
[1727394522991,3.2179,155.34,155.31,3.2185]
[1727394523192,3.2179,155.34,155.31,13.1085]
[1727394523389,9.89,155.36,155.31,9.89]
[1727394523993,9.89,155.36,155.32,3.2183]
[1727394523994,3.2178,155.35,155.32,3.2183]
[1727394524686,3.2175,155.36,155.33,13.108]
[1727394525284,9.89,155.36,155.31,9.89]
[1727394525792,3.218,155.34,155.31,13.1084]
[1727394526388,3.2177,155.35,155.32,3.2183]
[1727394526689,3.2177,155.35,155.33,9.89]
[1727394527691,3.2175,155.36,155.33,13.1081]
[1727394528790,3.2175,155.36,155.33,9.89]
[1727394529494,3.2177,155.35,155.33,9.89]
[1727394533803,3.2177,155.35,155.32,3.2182]
[1727394533996,3.2177,155.35,155.32,13.1082]
[1727394538603,21.6322,155.44,155.34,3.2178]
[1727394538797,9.89,155.4,155.35,9.89]
[1727394540408,9.89,155.4,155.28,1.2886]
[1727394540409,9.89,155.38,155.33,13.108]
[1727394541806,3.2175,155.36,155.33,13.108]
[1727394542815,3.2177,155.35,155.32,13.1082]
[1727394545217,21.6322,155.44,155.28,1.2886]
[1727394545218,3.2176,155.36,155.33,13.1081]
[1727394546120,3.2179,155.35,155.28,1.2886]
[1727394546306,9.89,155.38,155.33,9.89]
[1727394546712,21.6322,155.44,155.36,9.89]
[1727394546913,21.6322,155.44,155.37,9.89]
[1727394546914,9.89,155.41,155.37,9.89]
[1727394547142,3.2167,155.4,155.37,9.89]
[1727394547325,3.2167,155.4,155.28,1.2886]
[1727394547326,3.2167,155.4,155.38,9.89]
[1727394547613,3.2167,155.4,155.33,3.2828804]
[1727394547614,9.89,155.48,155.39,9.89]
[1727394547817,9.89,155.48,155.43,9.89]
[1727394548120,9.89,155.47,155.42,9.89]
[1727394548916,3.2158,155.45,155.42,9.89]
[1727394549311,3.2158,155.45,155.41,4.5632]
[1727394549516,9.89,155.45,155.41,1.3469]
[1727394549919,19.3,155.51,155.41,1.3469]
[1727394549920,3.2162,155.43,155.41,1.3469]
[1727394550210,9.89,155.45,155.41,1.3469]
[1727394550616,3.216,155.43,155.41,1.3469]
[1727394551615,9.89,155.44,155.4,1.2766]
[1727394551917,9.89,155.42,155.37,9.89]
[1727394552914,3.2165,155.41,155.38,3.2171]
[1727394553116,3.2165,155.41,155.37,9.89]
[1727394553314,3.2165,155.41,155.37,13.1072]
[1727394555121,3.2168,155.4,155.37,9.89]
[1727394555817,3.2168,155.4,155.37,13.1072]
[1727394556023,3.2165,155.41,155.38,9.89]
[1727394556323,9.89,155.43,155.38,9.89]
[1727394557116,9.89,155.43,155.38,13.107]
[1727394558925,3.2165,155.41,155.38,13.107]
[1727394562920,3.2165,155.41,155.38,9.89]
[1727394564119,3.2163,155.42,155.38,13.1069]
[1727394564323,0.9662,155.5,155.39,9.89]
[1727394564523,9.89,155.46,155.4,9.89]
[1727394564729,3.2159,155.44,155.4,9.89]
[1727394565529,3.2159,155.44,155.4,13.1066]
[1727394567032,9.89,155.45,155.4,9.89]
[1727394568131,3.216,155.44,155.4,13.1066]
[1727394569624,3.216,155.44,155.41,3.2164]
[1727394569830,9.89,155.45,155.41,3.2164]
[1727394569831,3.2157,155.45,155.41,13.1064]
[1727394571438,3.2158,155.44,155.41,13.1064]
[1727394572828,3.2164,155.42,155.35,2.7582]
[1727394573035,9.89,155.45,155.35,2.7582]
[1727394573337,9.89,155.45,155.4,9.89]
[1727394573537,3.2162,155.43,155.4,13.1066]
[1727394575033,3.2159,155.44,155.41,13.1064]
[1727394575832,9.89,155.47,155.43,9.89]
[1727394576436,19.3,155.51,155.43,9.89]
[1727394576638,9.89,155.47,155.43,9.89]
[1727394576840,3.2154,155.46,155.43,13.1059]
[1727394577040,3.2154,155.46,155.43,9.89]
[1727394577840,3.2156,155.45,155.43,9.89]
[1727394579142,3.2155,155.46,155.44,9.89]
[1727394579337,1.3466,155.53,155.45,9.89]
[1727394579644,1.3466,155.53,155.35,2.7582]
[1727394579645,3.2148,155.5,155.47,9.89]
[1727394580238,3.2148,155.5,155.47,13.1051]
[1727394580461,1.3022,155.57,155.48,9.89]
[1727394580632,4.59689983,155.57,155.48,9.89]
[1727394580834,3.2143,155.52,155.48,13.1048]
[1727394581034,9.89,155.53,155.48,9.89]
[1727394581232,1.3022,155.57,155.48,9.89]
[1727394581445,1.3022,155.57,155.45,2.6661]
[1727394581446,9.89,155.53,155.49,9.89]
[1727394582838,3.2142,155.52,155.49,9.89]
[1727394583239,3.2142,155.52,155.48,3.2149]
[1727394583445,3.2142,155.52,155.49,9.89]
[1727394585342,3.25496089,155.57,155.51,9.89]
[1727394585646,9.89,155.56,155.51,9.89]
[1727394585845,3.214,155.53,155.52,9.89]
[1727394586547,3.2138,155.54,155.52,9.89]
[1727394586938,9.89,155.56,155.52,9.89]
[1727394587452,3.2138,155.54,155.52,9.89]
[1727394588154,3.2138,155.54,155.53,9.89]
[1727394588844,9.89,155.57,155.53,9.89]
[1727394589645,3.2137,155.55,155.53,9.89]
[1727394589843,9.89,155.56,155.53,9.89]
[1727394590844,3.2138,155.54,155.53,9.89]
[1727394591045,3.2138,155.54,155.51,13.1043]
[1727394591240,3.2138,155.54,155.51,9.89]
[1727394591445,3.214,155.53,155.51,9.89]
[1727394592953,3.214,155.53,155.5,11.2288]
[1727394593151,3.214,155.53,155.5,1.3388]
[1727394593348,3.2143,155.52,155.5,11.2288]
[1727394593852,9.89,155.54,155.5,1.3388]
[1727394594048,9.89,155.53,155.48,9.89]
[1727394595449,9.89,155.54,155.5,9.89]
[1727394596549,9.89,155.53,155.49,9.89]
[1727394596751,3.2144,155.51,155.49,9.89]
[1727394597046,3.2144,155.51,155.48,13.1049]
[1727394598344,301.16,155.69,155.5,9.89]
[1727394598544,9.89,155.58,155.54,9.89]
[1727394598952,9.89,155.57,155.53,9.89]
[1727394599154,9.89,155.55,155.5,9.89]
[1727394599650,3.2138,155.54,155.5,13.1044]
[1727394599849,3.2138,155.54,155.51,9.89]
[1727394600250,13.1036,155.55,155.51,13.1042]
[1727394600446,13.1036,155.55,155.51,9.89]
[1727394601254,3.2136,155.55,155.51,9.89]
[1727394601454,3.2133,155.56,155.53,9.89]
[1727394603162,3.2138,155.54,155.53,9.89]
[1727394603353,3.2138,155.54,155.51,3.2143]
[1727394603558,3.2138,155.54,155.51,13.1043]
[1727394603753,9.89,155.56,155.51,3.2143]
[1727394603956,9.89,155.56,155.52,9.89]
[1727394604156,3.2137,155.55,155.52,9.89]
[1727394604860,3.2137,155.55,155.52,13.1042]
[1727394605060,6.88170358,155.62,155.54,9.89]
[1727394605361,9.89,155.58,155.54,9.89]
[1727394605764,6.88170358,155.62,155.54,9.89]
[1727394605956,3.2133,155.57,155.54,9.89]
[1727394607058,9.89,155.57,155.52,3.2141]
[1727394607853,3.2137,155.55,155.52,3.2141]
[1727394609561,3.2137,155.55,155.51,11.2469]
[1727394609562,3.2138,155.54,155.51,14.4612]
[1727394611465,3.2141,155.53,155.5,9.89]
[1727394611763,9.89,155.56,155.51,9.89]
[1727394611964,9.89,155.56,155.52,9.89]
[1727394612356,3.2137,155.55,155.52,9.89]
[1727394613567,3.2138,155.54,155.52,9.89]
[1727394614768,3.2138,155.54,155.51,3.2144]
[1727394614769,9.89,155.53,155.46,1.299]
[1727394615066,9.89,155.49,155.46,1.299]
[1727394615263,9.89,155.48,155.43,87.05]
[1727394615458,9.89,155.47,155.43,87.05]
[1727394615667,3.5908,155.53,155.43,77.16]
[1727394615969,3.2157,155.45,155.42,14.4359]
[1727394616202,9.89,155.46,155.4,2.6245]
[1727394616466,3.2162,155.43,155.41,9.89]
[1727394616671,9.89,155.45,155.41,9.89]
[1727394616856,3.2157,155.45,155.41,13.1064]
[1727394617056,3.2157,155.45,155.42,9.89]
[1727394625771,3.2158,155.44,155.42,9.89]
[1727394627274,19.3,155.52,155.43,9.89]
[1727394627477,9.89,155.49,155.45,9.89]
[1727394628371,9.89,155.49,155.43,9.89]
[1727394628672,9.89,155.47,155.43,9.89]